bitfinex/quotes_ETHUSD_20230102
["timestamp","ask_amount","ask_price","bid_price","bid_amount"]
[1672699964539,6.17787545,1215.5,1215.2,19.92110923]
[1672699964712,6.17787545,1215.5,1215.2,28.15019923]
[1672699966328,4.14886114,1215.4,1215.2,24.75406]
[1672699966496,4.14886114,1215.4,1215.2,16.525]
[1672699966497,4.923,1215.4,1215.2,16.525]
[1672699966707,4.923,1215.4,1215.2,24.75409]
[1672699967042,4.923,1215.4,1215.3,3.5]
[1672699967215,4.923,1215.4,1215.3,28.18526]
[1672699967425,4.923,1215.4,1215.3,28.25226]
[1672699967631,0.066,1215.5,1215.3,28.25226]
[1672699967895,5.5447,1215.6,1215.3,28.25226]
[1672699968159,4.927,1215.6,1215.3,28.25226]
[1672699968308,4.923,1215.6,1215.3,28.25226]
[1672699970548,16.1851,1215.7,1215.3,28.25226]
[1672699970694,20.4285,1215.7,1215.3,28.25226]
[1672699971218,0.00887545,1215.7,1215.3,32.40112114]
[1672699971432,0.066,1215.9,1215.4,5.28386114]
[1672699971636,4.923,1216.0,1215.5,45.2596]
[1672699971846,9.07186114,1216.0,1215.6,3.5]
[1672699972070,9.07586114,1216.0,1215.7,32.90228]
[1672699972391,4.927,1216.0,1215.9,24.67308]
[1672699972603,9.923,1216.0,1215.9,24.74008]
[1672699972953,0.004,1216.0,1215.9,24.74008]
[1672699973115,4.923,1216.1,1215.9,24.74008]
[1672699973318,9.07186114,1216.1,1215.9,24.74008]
[1672699973527,9.07586114,1216.1,1215.9,24.74008]
[1672699973787,4.927,1216.1,1216.0,3.5]
[1672699974003,9.923,1216.1,1216.0,28.17104]
[1672699974265,9.927,1216.1,1216.0,28.23804]
[1672699974933,4.927,1216.1,1216.0,24.73804]
[1672699975104,4.923,1216.1,1216.0,24.73804]
[1672699975315,5.066,1216.2,1216.0,24.73804]
[1672699975316,4.989,1216.2,1216.0,24.73804]
[1672699975586,9.07186114,1216.2,1216.0,24.73804]
[1672699975793,4.927,1216.2,1216.0,24.73804]
[1672699975948,4.923,1216.2,1216.0,24.73804]
[1672699977944,4.99387545,1216.3,1216.0,24.73804]
[1672699978149,4.92787545,1216.3,1216.0,24.73804]
[1672699979262,4.92787545,1216.3,1216.0,16.51436]
[1672699979628,4.92787545,1216.3,1216.0,24.73804]
[1672699982882,4.92987545,1216.3,1216.0,24.73504]
[1672699983140,4.92787545,1216.3,1216.0,24.73804]
[1672699983349,6.915873,1216.3,1216.0,24.73804]
[1672699983529,6.919873,1216.3,1216.0,24.73804]
[1672699985336,6.919873,1216.3,1216.0,24.73519865]
[1672699988492,6.919873,1216.3,1216.0,16.51151865]
[1672699988696,15.141813,1216.3,1216.0,0.067]
[1672699988910,23.363753,1216.3,1215.9,24.73865]
[1672699989158,33.41386843,1216.3,1215.9,24.73865]
[1672699989367,16.96998843,1216.3,1215.9,24.73865]
[1672699989536,33.41328843,1216.3,1215.9,0.067]
[1672699989754,33.41299843,1216.3,1215.9,11.72424]
[1672699989960,25.19134843,1216.3,1215.9,28.23996]
[1672699990214,19.40726566,1216.3,1215.9,28.23996]
[1672699990417,27.62891566,1216.3,1215.9,28.23996]
[1672699990606,27.62891566,1216.3,1215.9,3.567]
[1672699990830,15.3344768,1216.3,1215.9,3.5]
[1672699991053,16.4594768,1216.3,1215.9,28.17215]
[1672699991265,14.02190957,1216.3,1215.9,24.73915]
[1672699991750,16.4594768,1216.3,1215.9,24.73915]
[1672699996305,6.75117543,1216.2,1215.9,24.73915]
[1672699996507,6.75517543,1216.2,1215.9,24.73915]
[1672699996689,4.927,1216.2,1215.9,24.73915]
[1672699996904,4.923,1216.2,1215.9,24.73915]
[1672699997253,6.75117543,1216.2,1215.9,24.73915]
[1672699997470,6.75517543,1216.2,1215.9,24.73915]
[1672699997685,7.74826444,1216.2,1215.9,24.73915]
[1672700000738,10.18583167,1216.2,1215.9,24.73915]
[1672700000995,7.74826444,1216.2,1215.9,24.73915]
[1672700001145,10.18583167,1216.2,1215.9,24.73915]
[1672700001728,4.923,1216.0,1215.9,0.067]
[1672700001877,9.97904725,1216.0,1215.9,8.22427]
[1672700002075,9.98304725,1216.0,1215.9,0.067]
[1672700002285,9.98304725,1216.0,1215.8,24.74081]
[1672700002537,9.07586114,1216.0,1215.8,24.74081]
[1672700003597,9.07271309,1216.0,1215.8,24.74081]
[1672700004716,0.03,1216.4,1215.9,14.02327282]
[1672700004929,3.27687415,1216.2,1216.0,43.34778855]
[1672700005156,3.063396,1216.3,1216.1,12.819921]
[1672700005333,3.001396,1216.3,1216.2,37.03818114]
[1672700005542,0.066,1216.5,1216.3,3.5]
[1672700005761,8.169,1216.7,1216.4,24.66291]
[1672700005979,8.169,1216.7,1216.4,24.72991]
[1672700008505,12.31786114,1216.7,1216.4,0.067]
[1672700008724,12.31786114,1216.7,1216.4,24.66219]
[1672700008947,14.84131825,1216.7,1216.4,24.72919]
[1672700009622,14.8461937,1216.7,1216.4,24.72919]
[1672700009823,14.8481937,1216.7,1216.4,24.72619]
[1672700009986,14.8461937,1216.7,1216.4,24.72919]
[1672700012387,7.98101002,1216.6,1216.4,24.72919]
[1672700012600,4.923,1216.6,1216.4,24.72919]
[1672700012804,8.84107114,1216.6,1216.4,24.72919]
[1672700013072,11.51751191,1216.5,1216.4,16.50866]
[1672700013426,9.07186114,1216.5,1216.4,16.50866]
[1672700013596,9.07186114,1216.5,1216.4,24.72963]
[1672700015022,4.923,1216.5,1216.4,24.72963]
[1672700015869,4.923,1216.5,1216.4,16.50866]
[1672700016083,4.923,1216.5,1216.4,0.067]
[1672700016282,4.923,1216.5,1216.3,18.68678503]
[1672700016490,4.923,1216.5,1216.3,26.90804503]
[1672700017029,7.36865077,1216.5,1216.3,26.90804503]
[1672700018224,7.36865077,1216.5,1216.3,26.85804503]
[1672700019646,8.91564643,1216.5,1216.3,26.85804503]
[1672700019872,11.9785319,1216.5,1216.3,26.85804503]
[1672700020082,2.11023275,1216.5,1216.4,4.14886114]
[1672700020329,4.80311118,1216.7,1216.5,3.5]
[1672700020330,0.066,1216.7,1216.5,3.5]
[1672700020496,8.59111118,1216.9,1216.6,24.65886]
[1672700020497,4.927,1216.9,1216.6,24.65886]
[1672700020709,4.927,1216.9,1216.6,24.72586]
[1672700020710,11.23741745,1216.9,1216.6,24.72586]
[1672700020968,11.85441745,1216.9,1216.6,24.72586]
[1672700021398,5.54,1216.9,1216.6,24.72586]
[1672700021534,4.923,1216.9,1216.6,24.97824382]
[1672700021746,4.923,1216.9,1216.6,24.72586]
[1672700023109,17.98745192,1217.0,1216.6,24.72586]
[1672700023496,12.87667545,1217.0,1216.6,29.192451]
[1672700023701,4.92787545,1217.0,1216.6,29.192451]
[1672700024425,8.42787545,1217.0,1216.6,29.192451]
[1672700025263,4.92787545,1217.0,1216.6,29.192451]
[1672700025627,10.86890411,1217.0,1216.6,29.192451]
[1672700025838,7.36890411,1217.0,1216.6,29.192451]
[1672700027266,7.36890411,1217.0,1216.6,16.50624]
[1672700027267,4.923,1216.8,1216.6,16.50624]
[1672700027589,10.20486114,1216.8,1216.6,8.2866]
[1672700027749,9.07186114,1216.8,1216.6,8.2866]
[1672700027959,7.48894176,1216.8,1216.6,8.2866]
[1672700028173,4.923,1216.8,1216.6,24.72584]
[1672700031987,4.923,1216.8,1216.6,16.50622]
[1672700032211,4.923,1216.8,1216.6,24.72584]
[1672700033408,4.99387545,1216.9,1216.6,24.72584]
[1672700033673,9.07673659,1216.9,1216.6,24.72584]
[1672700033844,11.66200277,1216.9,1216.6,24.72584]
[1672700036271,14.71390927,1216.9,1216.6,24.72584]
[1672700040844,14.71390927,1216.9,1216.6,24.72551419]
[1672700042414,7.9749065,1216.8,1216.6,24.72551419]
[1672700044150,7.9249065,1216.8,1216.6,24.72551419]
[1672700044296,8.59111118,1216.8,1216.6,24.72551419]
[1672700045384,4.923,1216.8,1216.6,24.72551419]
[1672700045594,8.59111118,1216.8,1216.6,24.72551419]
[1672700045806,4.923,1216.8,1216.6,24.72551419]
[1672700046015,8.59111118,1216.8,1216.6,24.72551419]
[1672700046668,4.923,1216.8,1216.6,24.72551419]
[1672700046884,8.59111118,1216.8,1216.6,24.72551419]
[1672700047435,4.923,1216.8,1216.6,24.72551419]
[1672700047573,8.59111118,1216.8,1216.6,24.72551419]
[1672700048304,8.59111118,1216.8,1216.6,0.06667419]
[1672700048520,20.30948118,1216.8,1216.5,24.72645419]
[1672700048723,13.71630454,1216.8,1216.5,24.72645419]
[1672700048936,10.21630454,1216.8,1216.5,24.72645419]
[1672700049922,10.21417593,1216.8,1216.5,24.72645419]
[1672700050601,8.58898257,1216.8,1216.5,24.72645419]
[1672700051079,3.06214449,1216.7,1216.5,24.72645419]
[1672700053967,3.06214449,1216.6,1216.5,24.72645419]
[1672700056174,3.12814449,1216.7,1216.5,24.72645419]
[1672700056386,3.06214449,1216.7,1216.5,24.72645419]
[1672700058167,3.06214449,1216.6,1216.5,24.72645419]
[1672700068551,3.66811118,1216.6,1216.5,24.72645419]
[1672700070190,3.66811118,1216.6,1216.5,24.72356639]
[1672700070995,3.07076245,1216.6,1216.5,24.72356639]
[1672700071460,3.73411118,1216.7,1216.5,24.72356639]
[1672700071588,3.66811118,1216.7,1216.5,24.72356639]
[1672700072006,3.07071768,1216.6,1216.5,24.72356639]
[1672700073538,28.32697118,1216.6,1216.5,0.06667419]
[1672700073689,34.54122186,1216.6,1216.3,2.12751503]
[1672700073896,34.54122186,1216.6,1216.3,10.34904503]
[1672700073897,3.06985588,1216.4,1216.3,10.34904503]
[1672700074116,3.06985588,1216.4,1216.3,26.85901922]
[1672700074445,3.0700732,1216.4,1216.3,26.85901922]
[1672700074679,3.1360732,1216.5,1216.3,26.85901922]
[1672700074886,3.0700732,1216.5,1216.3,26.85901922]
[1672700075506,3.0700732,1216.5,1216.3,30.36711714]
[1672700081910,3.0700732,1216.5,1216.3,30.11711714]
[1672700090428,3.0700732,1216.5,1216.3,26.60901922]
[1672700098415,3.0700732,1216.4,1216.3,26.60901922]
[1672700098832,3.1360732,1216.5,1216.3,26.60901922]
[1672700098987,3.0700732,1216.5,1216.3,26.60901922]
[1672700102043,8.06182004,1216.6,1216.3,26.60901922]
[1672700102258,7.99582004,1216.6,1216.3,26.60901922]
[1672700102935,7.99582004,1216.6,1216.3,26.60519231]
[1672700104459,7.99782004,1216.6,1216.3,26.60219231]
[1672700104806,3.0700732,1216.5,1216.3,26.60519231]
[1672700106032,3.0700732,1216.5,1216.3,26.55519231]
[1672700108715,3.0700732,1216.5,1216.3,24.73150419]
[1672700110663,3.0700732,1216.4,1216.3,24.73150419]
[1672700111507,3.1360732,1216.5,1216.3,24.73150419]
[1672700111737,3.0700732,1216.5,1216.3,24.73150419]
[1672700114004,3.06688606,1216.5,1216.3,24.73150419]
[1672700121525,3.06688606,1216.5,1216.3,36.67801271]
[1672700121736,8.0586329,1216.6,1216.3,39.9925961]
[1672700122063,7.9926329,1216.6,1216.4,3.5]
[1672700122428,7.9926329,1216.6,1216.5,32.8812]
[1672700122749,7.9926329,1216.6,1216.5,32.94787419]
[1672700123457,3.06688606,1216.6,1216.5,32.94787419]
[1672700123671,3.13288606,1216.7,1216.5,43.58413846]
[1672700124000,3.06688606,1216.7,1216.5,32.94787419]
[1672700125434,3.06688606,1216.6,1216.5,32.94787419]
[1672700127216,3.13288606,1216.7,1216.5,32.94787419]
[1672700127445,3.06688606,1216.7,1216.5,32.94787419]
[1672700128038,9.16385737,1216.7,1216.5,32.94787419]
[1672700128714,3.06688606,1216.6,1216.5,32.94787419]
[1672700129750,9.22985737,1216.7,1216.5,32.94787419]
[1672700130099,9.16385737,1216.7,1216.5,32.94787419]
[1672700133353,0.31873816,1216.6,1216.5,32.94787419]
[1672700138134,0.31873816,1216.6,1216.5,32.9451259]
[1672700162138,0.31873816,1216.6,1216.5,32.94132393]
[1672700173020,3.74982706,1216.8,1216.5,37.05751332]
[1672700173229,3.74982706,1216.8,1216.6,6.04079375]
[1672700173230,3.07142891,1216.8,1216.6,6.04079375]
[1672700173445,8.06042891,1216.9,1216.7,32.8758]
[1672700173699,7.99442891,1216.9,1216.7,32.94247419]
[1672700175137,3.07142891,1216.8,1216.7,32.94247419]
[1672700175478,8.06042891,1216.9,1216.7,32.94247419]
[1672700175688,7.99442891,1216.9,1216.7,32.94247419]
[1672700178958,7.99442891,1216.9,1216.7,36.26195999]
[1672700179168,4.923,1216.9,1216.7,36.26195999]
[1672700180797,7.99442891,1216.9,1216.7,36.26195999]
[1672700181004,7.99442891,1216.9,1216.7,32.94247419]
[1672700181257,7.99442891,1216.9,1216.7,24.72352419]
[1672700181678,3.07142891,1216.8,1216.7,24.72352419]
[1672700181862,8.06042891,1216.9,1216.7,24.72352419]
[1672700182058,7.99442891,1216.9,1216.7,24.72352419]
[1672700186108,7.99642891,1216.9,1216.7,24.72052419]
[1672700186319,7.99442891,1216.9,1216.7,24.72352419]
[1672700195361,7.99442891,1216.9,1216.7,24.71990508]
[1672700195904,4.923,1216.9,1216.7,24.71990508]
[1672700196835,8.06530436,1217.0,1216.7,24.71990508]
[1672700197008,7.99930436,1217.0,1216.7,24.71990508]
[1672700197393,3.07142891,1216.8,1216.7,24.72347419]
[1672700197588,3.07142891,1216.8,1216.7,16.50452419]
[1672700197971,3.07142891,1216.8,1216.7,8.28557419]
[1672700198588,3.07142891,1216.8,1216.7,24.72347419]
[1672700199591,8.06042891,1216.9,1216.7,24.72347419]
[1672700199738,7.99442891,1216.9,1216.7,24.72347419]
[1672700204223,7.99642891,1216.9,1216.7,24.72047419]
[1672700204437,7.99442891,1216.9,1216.7,24.72347419]
[1672700207051,3.07142891,1216.8,1216.7,24.72347419]
[1672700212049,3.68382706,1216.8,1216.7,24.72347419]
[1672700214152,8.67282706,1216.9,1216.7,24.72347419]
[1672700214419,8.60682706,1216.9,1216.7,24.72347419]
[1672700214630,3.07204485,1216.8,1216.7,24.72347419]
[1672700214786,8.67282706,1216.9,1216.7,24.72347419]
[1672700214994,12.10682706,1216.9,1216.7,24.72347419]
[1672700215245,3.07205568,1216.8,1216.7,24.72347419]
[1672700216571,3.68382706,1216.8,1216.7,24.72347419]
[1672700217322,3.65100158,1216.8,1216.7,24.72347419]
[1672700218096,8.489,1216.9,1216.7,24.72347419]
[1672700218409,8.423,1216.9,1216.7,24.72347419]
[1672700218993,4.923,1216.9,1216.7,24.72347419]
[1672700221577,3.07143722,1216.8,1216.7,24.72347419]
[1672700224822,12.67460639,1216.9,1216.7,24.72347419]
[1672700224989,10.99365276,1216.9,1216.7,24.72347419]
[1672700225182,3.07118344,1216.8,1216.7,24.72347419]
[1672700225624,3.07117595,1216.8,1216.7,24.72347419]
[1672700226083,11.05965276,1216.9,1216.7,24.72347419]
[1672700226253,10.99365276,1216.9,1216.7,24.72347419]
[1672700226681,10.99365276,1216.9,1216.7,16.50452419]
[1672700227481,3.07129764,1216.8,1216.7,24.72347419]
[1672700227977,3.07329764,1216.8,1216.7,24.72047419]
[1672700228294,3.07129764,1216.8,1216.7,16.50452419]
[1672700228817,8.67460639,1216.9,1216.7,24.72347419]
[1672700228980,8.60860639,1216.9,1216.7,16.50452419]
[1672700229185,3.07144865,1216.8,1216.7,24.72347419]
[1672700229709,8.67460639,1216.9,1216.7,24.72347419]
[1672700229920,3.07145564,1216.8,1216.7,24.72347419]
[1672700230967,3.07134166,1216.8,1216.7,24.72347419]
[1672700231610,3.07134166,1216.8,1216.7,16.50452419]
[1672700231827,7.99434166,1216.8,1216.7,16.50452419]
[1672700232231,8.60860639,1216.8,1216.7,16.50452419]
[1672700232812,8.60860639,1216.8,1216.7,24.72347419]
[1672700233031,8.60860639,1216.8,1216.7,16.50452419]
[1672700233549,8.60860639,1216.8,1216.7,8.28557419]
[1672700233756,8.60860639,1216.8,1216.7,8.28562419]
[1672700233974,8.60860639,1216.8,1216.7,0.06667419]
[1672700234157,8.60860639,1216.8,1216.7,8.21895]
[1672700234370,8.60860639,1216.8,1216.7,8.28562419]
[1672700234753,8.60860639,1216.8,1216.7,16.50457419]
[1672700235229,4.923,1216.8,1216.7,24.72352419]
[1672700235440,7.9940122,1216.8,1216.7,24.72352419]
[1672700236280,4.923,1216.8,1216.7,24.72352419]
[1672700238455,8.60860639,1216.8,1216.7,24.72352419]
[1672700239753,8.60860639,1216.8,1216.7,16.50457419]
[1672700240345,8.60860639,1216.8,1216.7,24.72352419]
[1672700242003,8.60860639,1216.8,1216.7,24.72007712]
[1672700245042,11.46146779,1216.8,1216.7,8.28562419]
[1672700250264,7.7758614,1216.8,1216.7,8.28562419]
[1672700251040,12.05686898,1216.8,1216.7,8.28562419]
[1672700251899,11.46252587,1216.8,1216.7,8.28562419]
[1672700252887,11.46252587,1216.8,1216.7,0.06667419]
[1672700252888,7.7758614,1216.8,1216.7,0.06667419]
[1672700253044,7.7758614,1216.8,1216.6,24.72419419]
[1672700253414,8.60974725,1216.7,1216.6,24.72419419]
[1672700254087,8.90570274,1216.7,1216.6,24.72419419]
[1672700254300,8.90570274,1216.7,1216.6,0.06667419]
[1672700254517,36.63212304,1216.7,1216.4,0.06667419]
[1672700254717,36.63212304,1216.7,1216.3,38.23810419]
[1672700254718,3.07186962,1216.5,1216.3,38.23810419]
[1672700254926,3.07186962,1216.5,1216.4,24.6629]
[1672700255133,14.18310469,1216.5,1216.4,0.06667419]
[1672700255446,16.17841592,1216.5,1216.3,16.44268]
[1672700255615,9.41455441,1216.4,1216.3,16.50935419]
[1672700255830,4.923,1216.4,1216.3,16.50935419]
[1672700256609,7.99455441,1216.4,1216.3,16.50935419]
[1672700257045,7.99455441,1216.4,1216.3,8.28787419]
[1672700258088,4.923,1216.4,1216.3,16.50952419]
[1672700258942,15.13138823,1216.4,1216.3,0.06667419]
[1672700259212,33.61789282,1216.4,1216.2,4.19e-06]
[1672700259399,42.44856205,1216.3,1215.8,8.24900419]
[1672700259563,9.41419539,1216.2,1215.9,4.0]
[1672700259776,9.41419539,1216.2,1215.9,20.44869]
[1672700259994,6.35287545,1216.2,1215.9,28.69705419]
[1672700260525,9.41907084,1216.2,1215.9,28.69705419]
[1672700260876,7.99407084,1216.2,1215.9,28.69705419]
[1672700261040,0.32162132,1216.1,1215.9,8.24833419]
[1672700262302,9.07186114,1216.0,1215.9,0.02400419]
[1672700262515,9.07186114,1216.0,1215.8,8.22491]
[1672700262743,9.07186114,1216.0,1215.8,24.69854419]
[1672700262744,10.98130939,1216.0,1215.8,24.69854419]
[1672700264942,10.98618484,1216.0,1215.8,24.69854419]
[1672700266519,4.14886114,1215.9,1215.8,8.24872419]
[1672700266731,9.07186114,1215.9,1215.8,8.24872419]
[1672700267274,9.07186114,1215.9,1215.8,16.47375419]
[1672700267490,10.23881962,1215.9,1215.8,8.24872419]
[1672700267720,10.23881962,1215.9,1215.8,8.24903419]
[1672700268139,10.23881962,1215.9,1215.8,16.47406419]
[1672700268325,10.23881962,1215.9,1215.8,8.24903419]
[1672700268557,10.23881962,1215.9,1215.8,0.02400419]
[1672700268768,10.23881962,1215.9,1215.6,16.45181]
[1672700268983,10.23881962,1215.9,1215.7,16.45091]
[1672700269157,10.23881962,1215.9,1215.7,24.70044419]
[1672700269791,10.23881962,1215.9,1215.7,16.47509419]
[1672700270001,10.23881962,1215.9,1215.7,24.70080419]
[1672700271618,10.23881962,1215.9,1215.7,8.24938419]
[1672700271801,4.14886114,1215.8,1215.7,8.24938419]
[1672700272019,10.0957431,1215.8,1215.7,24.70080419]
[1672700274257,10.0957431,1215.8,1215.7,16.47509419]
[1672700275413,10.0957431,1215.8,1215.7,24.70080419]
[1672700276233,9.07186114,1215.8,1215.7,24.70080419]
[1672700278422,4.923,1215.8,1215.7,24.70080419]
[1672700279574,4.99387545,1215.9,1215.7,24.70080419]
[1672700279778,9.07673659,1215.9,1215.7,24.70080419]
[1672700280063,0.00487545,1215.9,1215.7,28.13596861]
[1672700280275,0.32162132,1216.1,1215.8,2.85]
[1672700280575,0.32162132,1216.1,1215.9,38.32431544]
[1672700280742,0.32162132,1216.1,1215.9,38.34831963]
[1672700280949,0.32162132,1216.1,1215.9,38.34451971]
[1672700283935,0.066,1216.2,1216.1,32.892]
[1672700284145,4.923,1216.3,1216.1,34.34100419]
[1672700284466,4.989,1216.4,1216.2,28.66699]
[1672700284629,9.07186114,1216.4,1216.2,28.69099419]
[1672700285518,9.07186114,1216.4,1216.2,24.69099419]
[1672700286189,0.32167094,1216.3,1216.2,24.69099419]
[1672700287240,9.13786114,1216.4,1216.2,24.69099419]
[1672700287452,10.44736725,1216.4,1216.2,24.69099419]
[1672700290314,9.07186114,1216.4,1216.2,24.69099419]
[1672700293336,0.32167094,1216.3,1216.2,24.69099419]
[1672700294069,9.13786114,1216.4,1216.2,24.69099419]
[1672700294482,9.07186114,1216.4,1216.2,24.69099419]
[1672700295038,9.06947758,1216.4,1216.2,24.69099419]
[1672700297287,10.75185242,1216.4,1216.2,24.69099419]
[1672700297435,13.81804781,1216.4,1216.2,24.69099419]
[1672700297860,10.75185242,1216.4,1216.2,24.69099419]
[1672700301054,9.06947758,1216.4,1216.2,24.69099419]
[1672700303443,4.989,1216.5,1216.2,24.69099419]
[1672700303681,4.923,1216.5,1216.2,24.69099419]
[1672700305646,7.98919539,1216.5,1216.2,24.69099419]
[1672700306269,7.98919539,1216.5,1216.2,28.18663361]
[1672700307550,4.923,1216.5,1216.2,28.18663361]
[1672700307760,7.98919539,1216.5,1216.2,28.18663361]
[1672700308772,4.923,1216.5,1216.2,28.18663361]
[1672700309929,7.98919539,1216.5,1216.2,28.18663361]
[1672700314406,9.56314757,1216.5,1216.2,24.69099419]
[1672700315859,3.06619539,1216.4,1216.2,24.69099419]
[1672700317087,8.05519539,1216.5,1216.2,24.69099419]
[1672700317269,7.98919539,1216.5,1216.2,24.69099419]
[1672700317692,3.06619539,1216.4,1216.2,24.69099419]
[1672700317862,3.06619539,1216.4,1216.2,28.12489361]
[1672700318412,3.06619539,1216.4,1216.2,28.12242976]
[1672700320210,3.06619539,1216.3,1216.2,28.12242976]
[1672700320754,3.06619539,1216.3,1216.2,24.68853034]
[1672700320921,3.06619539,1216.3,1216.2,16.46866419]
[1672700320922,7.98919539,1216.3,1216.2,16.46866419]
[1672700321346,7.98919539,1216.3,1216.2,24.69099419]
[1672700323222,4.923,1216.3,1216.2,24.69099419]
[1672700324161,8.60245091,1216.3,1216.2,24.69099419]
[1672700325058,7.99364426,1216.3,1216.2,24.69099419]
[1672700326692,8.60245091,1216.3,1216.2,24.69099419]
[1672700327118,3.67945091,1216.3,1216.2,24.69099419]
[1672700330499,11.74495343,1216.3,1216.2,8.24633419]
[1672700331376,7.46394585,1216.3,1216.2,8.24633419]
[1672700331955,11.14640986,1216.3,1216.2,8.24633419]
[1672700332170,11.14640986,1216.3,1216.2,16.46866419]
[1672700332379,11.14640986,1216.3,1216.2,8.24633419]
[1672700332622,11.14640986,1216.3,1216.2,0.02400419]
[1672700332840,11.14631882,1216.3,1216.1,24.69165419]
[1672700333006,3.06871719,1216.2,1216.1,24.69165419]
[1672700340502,8.05771719,1216.3,1216.1,24.69165419]
[1672700340714,7.99171719,1216.3,1216.1,24.69165419]
[1672700340884,3.06871719,1216.3,1216.1,28.12537661]
[1672700341884,3.06871719,1216.3,1216.1,29.55037661]
[1672700342430,3.06871719,1216.3,1216.1,29.54765227]
[1672700346209,3.06871719,1216.3,1216.1,26.11392985]
[1672700347649,3.06871719,1216.3,1216.1,24.68892985]
[1672700349988,3.06871719,1216.2,1216.1,24.68892985]
[1672700352140,3.0656521,1216.2,1216.1,24.68892985]
[1672700356911,0.066,1216.3,1216.1,24.68892985]
[1672700357130,8.61024842,1216.4,1216.1,28.12237984]
[1672700357717,8.61024842,1216.4,1216.1,29.54537984]
[1672700358938,8.61024842,1216.4,1216.2,4.0]
[1672700359147,8.61024842,1216.4,1216.3,24.66495]
[1672700359363,8.61024842,1216.4,1216.3,24.68895419]
[1672700359967,8.60537297,1216.4,1216.3,24.68895419]
[1672700360526,3.68237297,1216.4,1216.3,24.68895419]
[1672700362123,9.27000758,1216.5,1216.3,24.68895419]
[1672700362275,3.68442432,1216.4,1216.3,24.68895419]
[1672700363380,9.27000758,1216.5,1216.3,24.68895419]
[1672700363585,3.68438255,1216.4,1216.3,24.68895419]
[1672700365484,9.27000758,1216.5,1216.3,24.68895419]
[1672700365638,10.69845263,1216.5,1216.3,24.68895419]
[1672700365846,3.68464484,1216.4,1216.3,24.68895419]
[1672700366113,10.76445263,1216.5,1216.3,24.68895419]
[1672700366267,3.68468511,1216.4,1216.3,24.68895419]
[1672700367348,4.28100758,1216.4,1216.3,24.68895419]
[1672700368017,4.28100758,1216.4,1216.3,0.02400419]
[1672700368322,4.28100758,1216.4,1216.2,16.46797419]
[1672700368472,3.68443628,1216.3,1216.2,16.46797419]
[1672700368734,3.68443628,1216.3,1216.2,24.69030419]
[1672700372861,3.68443628,1216.3,1216.2,24.68706445]
[1672700385249,4.05497808,1216.3,1216.2,24.68706445]
[1672700394009,0.3705418,1216.3,1216.2,24.68706445]
[1672700395129,3.68443628,1216.4,1216.2,24.68706445]
[1672700396317,3.68443628,1216.4,1216.2,24.68489846]
[1672700397770,3.68443628,1216.4,1216.2,8.24045846]
[1672700398324,3.68443628,1216.4,1216.2,16.46278846]
[1672700399231,3.68443628,1216.4,1216.2,24.68511846]
[1672700400547,3.07104608,1216.3,1216.2,24.68511846]
[1672700400774,3.07102428,1216.3,1216.2,24.68511846]
[1672700400904,2.45686857,1216.3,1216.2,29.40060387]
[1672700401120,5.42702669,1216.3,1216.2,29.40060387]
[1672700401395,3.07102428,1216.3,1216.2,8.24045846]
[1672700401587,3.68443628,1216.3,1216.2,0.02400419]
[1672700401914,3.68443628,1216.3,1216.2,24.66699]
[1672700402222,3.07100758,1216.3,1216.2,24.69099419]
[1672700402412,3.68443628,1216.3,1216.2,24.69099419]
[1672700403703,4.34700758,1216.4,1216.2,24.69099419]
[1672700403850,8.28100758,1216.3,1216.2,0.02400419]
[1672700404223,13.20400758,1216.3,1216.1,16.46636985]
[1672700404431,9.21566414,1216.2,1216.1,0.02400419]
[1672700404752,33.88265414,1216.2,1215.8,8.24873419]
[1672700404959,33.88265414,1216.2,1215.8,0.02400419]
[1672700404960,3.06620627,1215.9,1215.8,0.02400419]
[1672700405115,3.06820627,1215.9,1215.7,5.49876861]
[1672700405326,3.06620627,1215.9,1215.7,4.07676861]
[1672700405536,3.06620627,1215.9,1215.7,11.66065442]
[1672700405869,4.923,1215.8,1215.7,0.02400419]
[1672700406079,4.925,1215.8,1215.4,8.84496]
[1672700406293,7.99337757,1215.8,1215.5,8.22703]
[1672700406524,7.99337757,1215.8,1215.5,16.47809419]
[1672700406738,3.06550212,1215.8,1215.5,19.97562961]
[1672700406952,3.74544752,1215.9,1215.7,1.412]
[1672700406953,3.13150212,1215.9,1215.7,1.412]
[1672700407269,3.13150212,1216.0,1215.8,24.67509]
[1672700407478,3.06550212,1216.0,1215.8,24.69909419]
[1672700407711,3.13150212,1216.1,1215.9,1.425]
[1672700408007,3.13150212,1216.2,1216.0,26.08304]
[1672700408199,5.0,1216.1,1216.0,26.35942801]
[1672700408418,7.98850212,1216.1,1216.0,0.02400419]
[1672700408739,12.75130866,1216.1,1215.8,1.425]
[1672700408976,3.06194905,1215.9,1215.7,0.02400419]
[1672700409142,3.06194905,1215.9,1215.5,17.19977961]
[1672700409378,3.06194905,1215.9,1215.5,0.02400419]
[1672700409379,10.43440314,1215.7,1215.5,0.02400419]
[1672700409565,2.44945409,1215.6,1215.3,0.02400419]
[1672700409898,2.44945409,1215.6,1215.2,24.71001419]
[1672700410113,2.44945409,1215.6,1215.2,25.32791419]
[1672700410430,10.50040314,1215.7,1215.3,1.412]
[1672700410653,2.44945409,1215.7,1215.4,26.1048]
[1672700410795,2.44945409,1215.7,1215.5,4.0]
[1672700411158,2.44945409,1215.7,1215.6,8.22639]
[1672700411159,3.06194905,1215.7,1215.6,8.22639]
[1672700411373,10.43063044,1215.7,1215.6,0.02400419]
[1672700411591,9.24699404,1215.7,1215.6,8.22639]
[1672700411738,5.50247774,1215.7,1215.6,16.47678419]
[1672700411950,5.50247774,1215.7,1215.6,8.25039419]
[1672700412330,2.44556015,1215.7,1215.6,8.25039419]
[1672700412636,2.44556015,1215.7,1215.6,0.02400419]
[1672700412637,13.55377873,1215.7,1215.6,0.02400419]
[1672700412790,31.11248071,1215.7,1215.3,3.0]
[1672700412992,4.923,1215.5,1215.3,3.0]
[1672700413202,0.066,1215.6,1215.3,27.6844]
[1672700413451,2.44261511,1215.5,1215.3,31.84349161]
[1672700413684,7.36561511,1215.4,1215.3,0.02400419]
[1672700413835,11.36561511,1215.4,1215.0,8.22999]
[1672700414083,9.07186114,1215.3,1215.0,0.02400419]
[1672700414290,9.07186114,1215.3,1214.9,0.7422968]
[1672700414291,4.923,1215.1,1214.9,0.7422968]
[1672700414558,4.923,1215.1,1214.9,17.2040068]
[1672700414775,5.61177545,1215.2,1214.9,8.99688099]
[1672700415090,5.54577545,1215.2,1214.9,8.99734099]
[1672700415236,5.5409,1215.2,1214.9,19.77450809]